Cogmind - Beta 14 @@@ ROGUE MODE // 2024.09.24 @ 22:56:51 // Winter2022/Polymind Player: AnotherZach Result: Destroyed by H-61 Shepherd with Heavy Assault Cannon Performance ------------- Evolutions (2) 1000 Regions Visited (5) 1000 Robots Destroyed (1) 5 Value Destroyed (16) 16 Prototype IDs (0) 0 Alien Tech Used (0) 0 Bonus (2566) 2566 TOTAL SCORE: 4297 Bonus ------- Polymind Skill 2166 Pacifist 200 Entered Garrisons 200 Cogmind --------- Core Integrity 0/550 Matter 0/0 Energy 40/100 System Corruption 0% Temperature Cool (0) Movement Core (50) Location -8/Materials Parts ------- > --- POWER (1) -------- (None) > --- PROPULSION (2) --- (None) > --- UTILITY (2) ------ (None) > --- WEAPON (0) ------- (None) > --- INVENTORY (0) ---- (None) Peak State ------------ > --- POWER ------------ Improved Ion Engine > --- PROPULSION ------- Light Treads Light Treads > --- UTILITY ---------- Heat Sink Heat Sink Light Armor Plating > --- WEAPON ----------- Beam Rifle Heavy Assault Rifle > --- INVENTORY -------- (None) [Rating: 11] Favorites ----------- Power Light Ion Engine Engine Light Ion Engine Propulsion Compact Wheel Treads Light Treads Wheel Compact Wheel Hover Unit Hover Unit Utility Small Storage Unit Device Tractor Beam Storage Small Storage Unit Processor Transport Network Coupler Hackware Hacking Suite Protection Light Armor Plating Weapon Mining Laser Energy Gun Beam Rifle Ballistic Gun Heavy Assault Rifle Special Weapon Mining Laser Special Melee Weapon Datajack Build | -11 -10 -9 -8 -8 -8 ------- Run | Yrd Mat Mat Mat Gar Mat Slots Evolved . | . . . . . . Power . | . . . . . . Propulsion . | . . . . . . Utility . | . . . . . . Weapon . | . . . . . . Parts Attached . | . . . . . . Power . | . . . . . . Engine . | . . . . . . Core . | . . . . . . Reactor . | . . . . . . Propulsion . | . . . . . . Treads . | . . . . . . Leg . | . . . . . . Wheel . | . . . . . . Hover . | . . . . . . Flight . | . . . . . . Utility . | . . . . . . Device . | . . . . . . Storage . | . . . . . . Processor . | . . . . . . Hackware . | . . . . . . Protection . | . . . . . . Artifact . | . . . . . . Weapon . | . . . . . . Energy Gun . | . . . . . . Energy Cannon . | . . . . . . Ballistic Gun . | . . . . . . Ballistic Cannon . | . . . . . . Launcher . | . . . . . . Special Weapon . | . . . . . . Impact Weapon . | . . . . . . Slashing Weapon . | . . . . . . Piercing Weapon . | . . . . . . Special Melee Weapon . | . . . . . . Unidentified Prototypes . | . . . . . . Parts Lost 5 | . 1 . . . 4 Power 1 | . . . . . 1 Propulsion 3 | . 1 . . . 2 Utility 1 | . . . . . 1 Weapon . | . . . . . . Highest Loss Streak 4 | . 1 . . . 4 To Critical Strikes . | . . . . . . Average Slot Usage (%) 86 | . 100 78 71 100 90 Engine 16 | . 20 17 12 16 16 Treads 7 | . . 2 1 33 10 Wheel 23 | . 34 28 23 . 23 Hover 1 | . 5 1 . . . Device 15 | . 17 7 20 16 16 Storage 12 | . 17 11 . 16 16 Processor 4 | . . 2 4 16 5 Hackware 1 | . 2 1 . . . Special Weapon 1 | . . . 7 . . Special Melee Weapon 1 | . 2 1 . . . Peak Build Rating 11 | 5 7 11 11 8 7 Average Rating 5 | 4 5 5 6 7 5 On Entrance 6 | . 5 6 11 8 7 Naked Turns 126 | . 7 26 81 . 12 Heaviest Build 18 | 9 9 18 15 15 15 Greatest Support 46 | 32 32 40 46 46 46 Greatest Overweight (x) 1 | . . . . . 1 Average Overweight (x) . | . . . . . . Largest Inventory Capacity 12 | 4 4 12 12 6 6 Average Capacity 3 | 3 3 2 2 6 4 Most Carried 12 | 4 4 12 12 5 2 Average Carried 1 | 1 2 1 2 . 1 Final Capacity 12 | 4 1 12 6 6 . Final Carried 12 | 4 . 12 6 . . Class Distribution -------------------- 31% | Recycler 20% | Hauler 12% | Worker 9% | Tunneler 9% | Cogmind 8% | Mechanic 5% | Operator 3% | Sentry Dominant Class ---------------- Recycler | -10/Materials Worker | -9/Materials Tunneler | -8/Materials Hauler | -8/Garrison Recycler | -8/Materials Resources | -11 -10 -9 -8 -8 -8 ----------- Run | Yrd Mat Mat Mat Gar Mat Matter Collected . | . . . . . . Remotely . | . . . . . . Salvage Created 19 | . . 19 . . . Parts 2 | . . 2 . . . Haulers Intercepted . | . . . . . . Recyclers Shooed . | . . . . . . Parts Field Recycled . | . . . . . . Retrieved Matter . | . . . . . . Parts Self-Destructed . | . . . . . . Prevented . | . . . . . . Kills | -11 -10 -9 -8 -8 -8 ------- Run | Yrd Mat Mat Mat Gar Mat Combat Hostiles Destroyed . | . . . . . . Classes Destroyed 1 | . . 1 . . . Watcher 1 | . . 1 . . . Best Kill Streak 1 | . . 1 . . . Combat Bots Only . | . . . . . . Max Kills in Single Turn 1 | . . 1 . . . Gunslinging . | . . . . . . Exploded . | . . . . . . Melee . | . . . . . . Uniques/NPCs Destroyed . | . . . . . . Combat | -11 -10 -9 -8 -8 -8 -------- Run | Yrd Mat Mat Mat Gar Mat Hostile Shots Fired 78 | . 23 13 9 . 33 Missed 24 | . 11 5 2 . 6 Damage Taken 971 | . 115 113 128 . 615 Core 657 | . 23 84 128 . 422 Absorbed by Shields . | . . . . . . Core Remaining (%) 89 | 100 90 79 . . . Volleys Fired 15 | . . 3 12 . . Largest 2 | . . 2 1 . . Hottest 100 | . . 79 100 . . Shots Fired 18 | . . 6 12 . . Gun 6 | . . 6 . . . Cannon . | . . . . . . Launcher . | . . . . . . Special 12 | . . . 12 . . Kinetic 3 | . . 3 . . . Thermal 15 | . . 3 12 . . Explosive . | . . . . . . Electromagnetic . | . . . . . . Robot Hit Streak 1 | . . 1 . . . Robot Miss Streak 2 | . . 2 . . . Penetration Max . | . . . . . . Secondary Targets . | . . . . . . Shots Hit Robots 3 | . 1 2 . . . Core Hits 5 | . 1 1 3 . . Critical Kills . | . . . . . . Critical Parts Destroyed . | . . . . . . Critical Strikes . | . . . . . . Melee Attacks 1 | . 1 . . . . Impact . | . . . . . . Slashing . | . . . . . . Piercing . | . . . . . . Sneak Attacks 1 | . 1 . . . . Combat Hostiles . | . . . . . . Follow-up Attacks . | . . . . . . Damage Inflicted 86 | . 3 33 50 . . Guns 30 | . . 30 . . . Cannons . | . . . . . . Explosions . | . . . . . . Melee . | . . . . . . Ramming 56 | . 3 3 50 . . Kinetic 16 | . . 16 . . . Thermal 14 | . . 14 . . . Explosive . | . . . . . . Electromagnetic . | . . . . . . Impact . | . . . . . . Slashing . | . . . . . . Piercing . | . . . . . . Highest Corruption . | . . . . . . Average Corruption . | . . . . . . Corruption Purged . | . . . . . . Corruption Blocked . | . . . . . . Overload Shots . | . . . . . . Overflow Damage . | . . . . . . Projectiles . | . . . . . . Explosions . | . . . . . . Melee . | . . . . . . Knockbacks . | . . . . . . Impact . | . . . . . . Kinetic . | . . . . . . Secondary . | . . . . . . Self-Inflicted Damage 23 | . 1 1 21 . . Shots . | . . . . . . Rammed 18 | . 1 2 15 . . Targets Rammed 18 | . 1 2 15 . . Kicked . | . . . . . . Crushed . | . . . . . . Highest Temperature 490 | . 5 4 490 . 39 Average Temperature 243 | . 2 4 294 . 18 Received Heat Transfer 354 | . 30 36 54 . 234 Effects 12 | . . . 12 . . Shutdowns 6 | . . . 6 . . Energy Bleed 2 | . . . 2 . . Interference 4 | . . . 4 . . Siege Activations . | . . . . . . Robots Corrupted . | . . . . . . Combat Hostiles . | . . . . . . Parts Fried . | . . . . . . Impact Corruptions . | . . . . . . Robots Melted . | . . . . . . Combat Hostiles . | . . . . . . Parts Melted . | . . . . . . Heat Transferred 37 | . . 37 . . . Parts Sabotaged . | . . . . . . Parts Stolen . | . . . . . . Parts Stripped . | . . . . . . Power Chain Reactions . | . . . . . . Alert | -11 -10 -9 -8 -8 -8 ------- Run | Yrd Mat Mat Mat Gar Mat Peak Influence 348 | . 110 348 206 185 222 Initial 146 | . . 42 146 135 89 Average 132 | . 32 176 169 166 143 Maximum Alert Level 1 | . . 1 1 . 1 Low Security (%) 83 | 100 100 52 96 100 81 Level 1 16 | . . 47 3 . 18 Level 2 . | . . . . . . Level 3 . | . . . . . . Level 4 . | . . . . . . Level 5 . | . . . . . . High Security . | . . . . . . Max Security . | . . . . . . Squads Dispatched 2 | . 1 . . . 1 Investigation 1 | . . . . . 1 Extermination . | . . . . . . Reinforcement 1 | . 1 . . . . Assault . | . . . . . . Garrison . | . . . . . . Intercept . | . . . . . . Searches Triggered . | . . . . . . Construction Impeded . | . . . . . . Haulers Reinforced . | . . . . . . Active Scanning Responses . | . . . . . . Cargo Convoy Interrupts . | . . . . . . Stealth | -11 -10 -9 -8 -8 -8 --------- Run | Yrd Mat Mat Mat Gar Mat Distress Signals 3 | . . 3 . . . Communications Jammed . | . . . . . . Distress Signals . | . . . . . . Times Spotted 38 | . 12 12 7 . 7 Peak Tracking Total 8 | . 8 4 8 . 6 Tactical Retreats 1 | . . . . . 1 Traps | -11 -10 -9 -8 -8 -8 ------- Run | Yrd Mat Mat Mat Gar Mat Traps Triggered . | . . . . . . Indirectly . | . . . . . . Trap Hack Attempts . | . . . . . . Triggered . | . . . . . . Disarmed . | . . . . . . Reprogrammed . | . . . . . . Reused . | . . . . . . Traps Extracted . | . . . . . . Installed . | . . . . . . Triggered . | . . . . . . Machines | -11 -10 -9 -8 -8 -8 ---------- Run | Yrd Mat Mat Mat Gar Mat Machines Disabled . | . . . . . . Max in Single Turn . | . . . . . . Machines Repaired . | . . . . . . Machines Dismantled . | . . . . . . Machines Sabotaged . | . . . . . . Overloaded Fab Kills . | . . . . . . Hacking | -11 -10 -9 -8 -8 -8 --------- Run | Yrd Mat Mat Mat Gar Mat Machines Accessed 12 | . 2 5 3 1 1 Terminals 10 | . 2 4 2 1 1 Fabricators . | . . . . . . Repair Stations . | . . . . . . Recycling Units 1 | . . 1 . . . Scanalyzers . | . . . . . . Garrison Access 1 | . . . 1 . . Total Hacks 24 | . 2 11 4 3 4 Successful 10 | . 1 6 2 . 1 Failed 14 | . 1 5 2 3 3 Catastrophic 4 | . 1 . . 1 2 Database Lockouts . | . . . . . . Manual 12 | . 2 10 . . . Terminals 22 | . 2 10 3 3 4 Fabricators . | . . . . . . Repair Stations . | . . . . . . Recycling Units 1 | . . 1 . . . Scanalyzers . | . . . . . . Garrison Access 1 | . . . 1 . . Terminal Hacks 5 | . . 3 1 . 1 Robot Schematic 2 | . . 2 . . . Robot Analysis 1 | . . . 1 . . Recycling Unit Index 1 | . . 1 . . . Locate Traps 1 | . . . . . 1 Fabricator Hacks . | . . . . . . Repair Station Hacks . | . . . . . . Recycling Unit Hacks . | . . . . . . Scanalyzer . | . . . . . . Garrison Access Hacks 1 | . . . 1 . . Unlock Access 1 | . . . 1 . . Unauthorized Hacks 4 | . 1 3 . . . Terminals 3 | . 1 2 . . . Botnet 2 | . . 2 . . . Operators 1 | . 1 . . . . Fabricators . | . . . . . . Repair Stations . | . . . . . . Recycling Units 1 | . . 1 . . . Recyclers 1 | . . 1 . . . Scanalyzers . | . . . . . . Garrison Access . | . . . . . . Data Cores Recovered . | . . . . . . Used . | . . . . . . Hacking Detections 7 | . 1 3 1 1 1 Full Trace Events 2 | . . . . 1 1 Feedback Events . | . . . . . . Feedback Blocked . | . . . . . . Robot Schematics Acquired 2 | . . 2 . . . Robots Built . | . . . . . . Authchips . | . . . . . . Time . | . . . . . . Total Robot Build Rating . | . . . . . . Part Schematics Acquired . | . . . . . . Parts Built . | . . . . . . Authchips . | . . . . . . Time . | . . . . . . Total Part Build Rating . | . . . . . . Parts Repaired . | . . . . . . Time . | . . . . . . Parts Recycled . | . . . . . . Recycled Matter . | . . . . . . Retrieved Matter . | . . . . . . Retrieved Components . | . . . . . . Parts Scanalyzed . | . . . . . . Part Schematics Acquired . | . . . . . . Parts Damaged . | . . . . . . Bothacking | -11 -10 -9 -8 -8 -8 ------------ Run | Yrd Mat Mat Mat Gar Mat Used RIF Installer . | . . . . . . Robots Hacked 7 | . 2 3 1 . 1 Non-combat 6 | . 2 2 1 . 1 Combat 1 | . . 1 . . . Robot Hacks Applied 7 | . 2 3 1 . 1 parse_system 1 | . 1 . . . . locate_stockpiles 1 | . . . 1 . . find_recycling 2 | . . 1 . . 1 find_station 1 | . . 1 . . . find_terminals 1 | . 1 . . . . find_shortcuts 1 | . . 1 . . . Relay Couplers Released . | . . . . . . Fabnet Peak Effective % . | . . . . . . Robots Rewired . | . . . . . . Allies Hacked . | . . . . . . Hacks Repelled . | . . . . . . Allies | -11 -10 -9 -8 -8 -8 -------- Run | Yrd Mat Mat Mat Gar Mat Total Allies . | . . . . . . Largest Group . | . . . . . . Highest-Rated Group . | . . . . . . Highest-Rated Ally . | . . . . . . Total Orders . | . . . . . . Ally Attacks . | . . . . . . Total Damage . | . . . . . . Kills . | . . . . . . Allies Corrupted . | . . . . . . Allies Melted . | . . . . . . Intel | -11 -10 -9 -8 -8 -8 ------- Run | Yrd Mat Mat Mat Gar Mat Robot Analysis Total 8 | 1 1 3 3 . . Derelict Logs Recovered . | . . . . . . Drone Launches . | . . . . . . Drone Recoveries . | . . . . . . Exploration | -11 -10 -9 -8 -8 -8 ------------- Run | Yrd Mat Mat Mat Gar Mat Turns Passed 1426 | 51 293 380 281 195 226 Spaces Moved 1386 | 54 317 448 241 121 205 Core 236 | 13 12 51 133 . 27 Treads 195 | . . 22 5 121 47 Legs . | . . . . . . Wheels 834 | 41 238 321 103 . 131 Hover 121 | . 67 54 . . . Flight . | . . . . . . Fastest Speed 50 | 50 50 50 50 160 50 Average Speed 90 | 87 88 80 65 160 107 Slowest Speed 160 | 100 100 160 160 160 160 Overloaded Moves . | . . . . . . Propulsion Burnouts . | . . . . . . Robots Hopped . | . . . . . . Cave-ins Triggered . | . . . . . . Exploration Rate (%) 27 | 4 46 37 23 27 29 Regions Visited 5 Branch Regions . Pre-discovered Areas . | . . . . . . Known Exits Taken 1 | . . . 1 . . Unknown Exits Taken 3 | 1 1 1 . . . Scrap Searched . | . . . . . . Spaces Dug 12 | . . . 12 . . Terrain Destroyed 12 | . . . 12 . . Melee . | . . . . . . Projectile 12 | . . . 12 . . AOE . | . . . . . . Terrain Rammed . | . . . . . . Walls Destroyed . | . . . . . . Machines Disabled . | . . . . . . Actions | -11 -10 -9 -8 -8 -8 --------- Run | Yrd Mat Mat Mat Gar Mat Total 1511 | 57 327 462 329 126 210 Wait 72 | . 3 7 61 . 1 Move 1382 | 53 316 447 241 120 205 Hop . | . . . . . . Pick Up 12 | 4 1 3 . . 4 Fast Attach . | . . . . . . Attach . | . . . . . . Detach . | . . . . . . Swap . | . . . . . . Drop 6 | . . . . 6 . Fire 15 | . . 3 12 . . Melee 1 | . 1 . . . . Ram 18 | . 1 2 15 . . Kick . | . . . . . . Crush . | . . . . . . Escape Stasis . | . . . . . . Rewire . | . . . . . . Trap . | . . . . . . Miscellaneous 5 | . 5 . . . . Route ------- -11/Scrapyard -10/Materials -9/Materials (discovered 3 exits: *Mat / [*Min] / [*Sto]) -8/Materials -8/Garrison -8/Materials History --------- Turn | Location | Event 5 | -11/Scrapyard | Discovered new exit (range 13) 52 | -11/Scrapyard | Entered Materials 338 | -10/Materials | Discovered new exit (range 14) 345 | -10/Materials | Entered another Materials area 355 | -9/Materials | Discovered new exit (range 8) 400 | -9/Materials | Discovered new exit (range 7) 711 | -9/Materials | Discovered new exit (range 13) 725 | -9/Materials | Entered another Materials area 1006 | -8/Materials | Identified exit to Garrison 1006 | -8/Materials | Entered Garrison 1044 | -8/Garrison | Triggered checkpoint 1120 | -8/Garrison | Triggered checkpoint 1136 | -8/Garrison | Triggered checkpoint 1179 | -8/Garrison | Discovered new exit (range 12) 1201 | -8/Garrison | Entered Materials 1411 | -8/Materials | Core integrity fell below 50% 1424 | -8/Materials | Core integrity fell below 20% 1427 | -8/Materials | Destroyed by H-61 Shepherd with Heavy Assault Cannon Last Messages --------------- Found 6 traps in 1 array: 6x Proton Bomb Trap Map updated. 01371_ Connecting with Terminal... 01371_ ALERT: Suspicious activity at Terminal M012. Dispatching Investigation squad. 01398_ T-07 Excavator is excavating. 01410_ Lgt. Ion Engine destroyed. 01410_ Critical hit (Blast). 01412_ Tractor Beam destroyed. 01412_ Com. Wheel destroyed. 01412_ Knocked back. 01414_ Com. Wheel destroyed. 01417_ Penetrated by Slug. 01417_ Knocked back. 01417_ Released control of R-06 Scavenger. 01418_ R-06 Scavenger reactivates. 01421_ Knocked back. 01423_ Critical hit (Burn: +37). 01425_ G-47 Trooper knocked back. Map ----- +----------------------------------------------------+ | ???# # | | ???#% ######" ## ########### | | ???# #????#"T## ????????? | | ???# #????##### #??????? | | ???# #????????######??????? | | ???# % #????????????????????? | | ???# % ########?????????????? | | ???# #= ?????????????? | | ???# # """" #???????????? | | ???# # """" #???????????? | | ???# # """" #???????????? | | ???# # #???????????? | | ???# #%] """" ????????????? | | ???# ^^^; """" ????????????? | | ???# ^^^ # """" ????????????? | | ???# # #???????????? | | ??## ##########???????????? | | ??# #???????????????????? | | ??# #####???????????????? | | ??# H g ==#???????????????? | | ??# ==#???????????????? | | ??# g **#???????????????? | | ??# g **#???????????????? | | ??# !!#???????????????? | | ??### ### !!#???????????????? | | ????# @ #??####???????????????? | | ????#% #?????????????????????? | | ????# #?????????????????????? | | ????# #?????????????????????? | | ????# #?????????????????????? | | ????# #?????????????????????? | | ????# +?????????????????????? | | ????# #?????????????????????? | | ????# #?????????????????????? | | ????# #?????????????????????? | | ????# #?????????????????????? | | ????# #?????????????????????? | | ????# #?????????????????????? | | ????? ??????????????????????? | | ????? ??????????????????????? | | ????? ??????????????????????? | | ??????????????????????????????? | | ??????????????????????????????? | | ??????????????????????????????? | | ??????????????????????????????? | | ??????????????????????????????? | | ??????????????????????????????? | | ??????????????????????????????? | | ??????????????????????????????? | | ??????????????????????????????? | +----------------------------------------------------+ Best States ------------- Heat Dissipation 36 Energy Generation 17 Energy Capacity 215 Matter Stores 94 Matter Capacity 125 Sight Range 16 Terrain Scan Range 16 Terrain Scan Density 10 Additional Mass Support 6 Armor Coverage 150 Resistance: EX 50 Resistance: I 25 Evasion (%) 53 Recoil Reduction 2 Offensive Hacking 10 Item Schematics ----------------- None Robot Schematics ------------------ M-13 Machinist | -9/Materials | Hacked O-16 Technician | -9/Materials | Hacked Fabricated ------------ Nothing Alien Tech Used ----------------- None Achievements -------------- None Challenges ------------ None Polymind | -11 -10 -9 -8 -8 -8 ---------- Run | Yrd Mat Mat Mat Gar Mat Hosts 10 | 1 1 5 2 . 1 Combat Hostiles 1 | . . 1 . . . Allies . | . . . . . . Unique Host Classes 7 | 1 1 3 2 . . Average Host Suspicion 53 | 7 46 60 70 25 73 Unsuspicious Activity 189 | 2 27 154 4 . 2 Returns to Shadow . | . . . . . . Fuzzy Dispatches . | . . . . . . Protomatter Created . | . . . . . . Used 68 | 5 5 43 10 . 5 Decayed . | . . . . . . Highest Spend 23 | 5 5 23 5 . 5 Game ------ Seed RainbowGravmagNanoactuators Manual? 0 Play Time 00:15:07 Cumulative 743.9 hours Start 2024.09.24 @ 22:43:27 End 2024.09.24 @ 22:56:51 Sessions 1 Manual Loads 0 Difficulty Rogue Special Mode Winter2022/Polymind Game No. 164 Rogue 26 Adventurer 138 Explorer 0 Win Type - Total 13 Types 8/0/1/2/1/0/0/0/1 Lore% 79 Gallery% 84 Achievement% 75 Wizard Run 0 Options --------- Layout 2 ASCII 0 Keyboard 0 Movement Mouse Keybinds 0 Fullscreen 1 Font 24/Smallcaps Map View 50x49 Zoom Use 0% Tactical HUD 1 Map Filters NONE Filters NONE Steam 1 RUN: eec02953-acd4-4867-a82e-58f08eb4d07c